bitfinex/quotes_ETHUSD_20251031
["timestamp","ask_amount","ask_price","bid_price","bid_amount"]
[1761873327884,0.001,3860.5,3860.0,0.9197]
[1761873328100,0.001,3860.5,3860.4,0.4583]
[1761873328306,0.001,3860.5,3860.4,0.9197]
[1761873330389,2.59043883,3860.4,3860.1,0.4614]
[1761873330589,2.59040513,3860.4,3860.1,0.4614]
[1761873330793,2.59135251,3860.5,3860.3,0.4583]
[1761873331105,0.001,3860.5,3860.4,0.4583]
[1761873331406,2.59060646,3860.1,3860.0,0.4614]
[1761873331569,2.59067654,3860.0,3859.7,0.4614]
[1761873331772,0.001,3860.5,3860.4,0.4583]
[1761873332191,0.001,3860.5,3860.4,0.9197]
[1761873332778,2.59133803,3860.5,3860.4,0.9197]
[1761873333799,0.001,3860.5,3860.4,0.9197]
[1761873334301,2.59133803,3860.5,3860.4,0.9197]
[1761873335399,0.001,3860.5,3860.4,0.9197]
[1761873335600,2.59133803,3860.5,3860.4,0.9197]
[1761873335806,0.001,3860.5,3860.4,0.9197]
[1761873337435,0.001,3860.5,3860.4,1.0485]
[1761873339889,2.59133803,3860.5,3860.4,1.0485]
[1761873340091,2.59134522,3860.5,3859.7,0.4614]
[1761873340290,2.59134522,3860.5,3859.6,0.186]
[1761873340291,2.59087493,3859.7,3859.6,0.186]
[1761873340923,2.59079069,3859.9,3859.3,0.80627546]
[1761873340924,2.59107633,3859.4,3859.3,0.80627546]
[1761873341324,2.59107633,3859.4,3859.3,1.26457546]
[1761873341527,2.59107633,3859.4,3859.3,0.34487546]
[1761873342395,2.59107633,3859.4,3859.3,1e-08]
[1761873342991,2.99658033,3859.4,3859.3,1e-08]
[1761873343220,2.59107633,3859.4,3859.3,1e-08]
[1761873343728,8.9714473,3859.4,3859.3,1e-08]
[1761873344212,2.59161353,3858.6,3858.5,1e-08]
[1761873344599,2.99711753,3858.6,3858.5,1e-08]
[1761873344795,2.59161353,3858.6,3858.5,1e-08]
[1761873348099,2.99711753,3858.6,3858.5,1e-08]
[1761873349233,0.10388166,3861.7,3859.0,0.4583]
[1761873349403,0.10388166,3861.7,3860.4,0.6454]
[1761873349404,2.58953358,3861.7,3860.4,0.6454]
[1761873349727,2.58927117,3862.1,3860.4,0.6454]
[1761873349893,2.59006876,3861.0,3860.4,1.1362]
[1761873350096,2.59107685,3860.9,3860.4,1.265]
[1761873350297,0.001,3860.9,3860.4,1.1362]
[1761873350519,0.001,3860.9,3860.4,1.265]
[1761873351098,2.59014103,3860.8,3860.4,1.265]
[1761873351299,2.59107547,3860.9,3860.4,1.265]
[1761873351527,0.001,3860.9,3860.4,1.265]
[1761873353628,2.590223,3860.7,3860.4,1.265]
[1761873353849,2.59021185,3860.7,3860.4,1.265]
[1761873354035,0.001,3860.9,3860.4,1.265]
[1761873354407,2.59109954,3860.9,3860.4,1.265]
[1761873354603,0.001,3860.9,3860.4,1.265]
[1761873355837,2.59107432,3860.9,3860.4,1.265]
[1761873356323,0.001,3860.9,3860.4,1.265]
[1761873356840,2.59107205,3860.9,3860.4,1.265]
[1761873357136,0.001,3860.9,3860.4,1.265]
[1761873357341,2.59110117,3860.9,3860.4,1.265]
[1761873357739,2.59013785,3860.8,3860.4,1.265]
[1761873357934,0.001,3860.9,3860.4,1.265]
[1761873359008,2.59109791,3860.9,3860.4,1.265]
[1761873359206,0.001,3860.9,3860.4,1.265]
[1761873359543,2.59014432,3860.8,3860.4,1.265]
[1761873359711,2.59107164,3860.9,3860.4,1.265]
[1761873360157,2.5898618,3861.3,3860.4,1.265]
[1761873360321,2.58999056,3861.1,3860.4,1.265]
[1761873360527,2.58957692,3861.7,3860.4,1.3059]
[1761873360726,2.58913572,3862.3,3860.4,1.3059]
[1761873360933,2.59006334,3861.0,3860.4,1.3059]
[1761873361834,2.58988577,3861.2,3860.4,1.3059]
[1761873362033,2.58920279,3862.2,3860.4,1.3059]
[1761873362247,2.58966786,3861.5,3860.4,1.3059]
[1761873362454,0.14625485,3862.6,3860.4,1.3059]
[1761873362455,2.5898027,3861.3,3860.4,1.3059]
[1761873362623,2.58965821,3861.6,3860.4,3.89630513]
[1761873362966,2.5897391,3861.4,3860.4,1.3059]
[1761873363146,2.58980737,3861.3,3860.4,1.3059]
[1761873363565,0.14625485,3862.6,3860.4,3.89630513]
[1761873363865,2.58967004,3861.5,3860.4,3.92220918]
[1761873364161,2.58973773,3861.4,3860.4,1.33180405]
[1761873364345,2.58968566,3861.5,3860.4,1.33180405]
[1761873364548,2.58915022,3862.3,3860.4,3.92220918]
[1761873364748,2.58968782,3861.5,3860.4,1.33180405]
[1761873364950,2.58968782,3861.5,3860.4,3.92220918]
[1761873365151,2.58953794,3861.7,3860.4,3.92220918]
[1761873365152,2.58975737,3861.4,3860.4,3.92220918]
[1761873365628,1.54593485,3862.6,3860.4,1.33180405]
[1761873366277,2.58941501,3861.9,3860.4,3.92220918]
[1761873366444,2.58966772,3861.5,3860.4,1.1771]
[1761873366629,2.5896154,3861.6,3860.4,3.76750513]
[1761873367126,0.01745485,3862.6,3860.4,3.79340918]
[1761873367478,0.01745485,3862.6,3860.4,5.16718513]
[1761873367645,2.58959898,3861.7,3860.4,5.16718513]
[1761873367826,2.58955093,3861.7,3860.4,5.16718513]
[1761873368246,2.58956308,3861.7,3860.4,5.16718513]
[1761873368458,0.01745485,3862.6,3860.4,5.16718513]
[1761873368626,2.58941223,3861.9,3860.4,5.16718513]
[1761873368832,2.58953783,3861.7,3860.4,5.16718513]
[1761873369324,2.58974468,3861.4,3860.4,2.57678]
[1761873369531,2.58980987,3861.3,3860.4,2.57678]
[1761873370066,2.58992264,3861.2,3860.4,2.57678]
[1761873370372,2.5898183,3861.3,3860.4,2.57678]
[1761873370567,2.58945279,3861.9,3860.4,5.19308918]
[1761873370730,2.6064354,3862.6,3860.4,5.16718513]
[1761873370942,2.58961921,3861.6,3860.4,5.16718513]
[1761873371146,2.58968174,3861.5,3860.4,5.16718513]
[1761873371846,2.58973513,3861.4,3860.4,2.57678]
[1761873372052,2.58968014,3861.5,3860.4,2.60268405]
[1761873372637,2.58992766,3861.2,3860.4,2.60268405]
[1761873372838,2.58992766,3861.2,3860.4,2.57678]
[1761873373050,2.58991163,3861.2,3860.4,2.57678]
[1761873373253,2.58977091,3861.4,3860.4,2.57678]
[1761873373479,2.58963273,3861.6,3860.4,2.57678]
[1761873373683,2.58913545,3862.3,3860.4,2.57678]
[1761873373988,2.58978508,3861.4,3860.4,2.57678]
[1761873374183,2.58978508,3861.4,3860.4,2.49953976]
[1761873374686,2.58987025,3861.2,3860.4,2.49953976]
[1761873375177,2.58981233,3861.3,3860.4,2.49953976]
[1761873375394,0.0328,3862.0,3860.4,2.52544381]
[1761873375798,2.58988192,3861.2,3860.4,2.52544381]
[1761873376005,2.58988192,3861.2,3860.4,2.49953976]
[1761873376213,0.0328,3862.8,3860.4,5.08994489]
[1761873376369,0.0328,3862.3,3860.4,2.62833976]
[1761873376682,2.58966831,3861.5,3860.4,5.21874489]
[1761873376883,0.001,3860.9,3860.4,5.21874489]
[1761873377903,0.001,3860.9,3860.8,0.497]
[1761873378204,0.001,3860.9,3860.8,9.67470372]
[1761873378697,0.001,3860.9,3860.8,7.08456697]
[1761873378867,0.001,3860.9,3860.8,9.67470372]
[1761873379071,0.001,3860.9,3860.8,7.08456697]
[1761873379254,0.001,3860.9,3860.8,8.89001484]
[1761873379858,0.001,3860.9,3860.8,10.28969484]
[1761873381505,0.001,3860.9,3860.8,8.48424697]
[1761873381696,0.001,3860.9,3860.8,11.07438372]
[1761873382408,0.001,3860.9,3860.8,8.48424697]
[1761873382910,0.001,3860.9,3860.8,11.07438372]
[1761873383281,0.001,3860.9,3860.8,8.48424697]
[1761873384769,0.001,3860.9,3860.8,1.52848]
[1761873384965,0.001,3860.9,3860.8,2.00838]
[1761873388018,0.001,3860.9,3860.8,7.50334697]
[1761873388231,0.0338,3860.9,3860.8,1.52848]
[1761873388436,0.0338,3860.9,3860.8,3.35001313]
[1761873388639,0.0338,3860.9,3860.8,1.52848]
[1761873388941,0.0338,3860.9,3860.8,0.1288]
[1761873389143,2.62386967,3860.9,3860.8,0.1288]
[1761873389439,0.0666,3860.9,3860.8,0.1288]
[1761873389831,0.0338,3860.9,3860.8,0.1288]
[1761873390712,2.62386967,3860.9,3860.8,0.1288]
[1761873390913,2.65666967,3860.9,3860.8,0.1288]
[1761873393454,2.65666967,3860.9,3859.7,0.02590874]
[1761873393455,2.59062785,3860.1,3859.7,0.02590874]
[1761873393753,2.59062785,3860.1,3859.6,1.82153313]
[1761873393754,0.0328,3859.8,3859.5,1.82153313]
[1761873393916,0.0328,3859.8,3859.6,0.02590942]
[1761873394653,2.59047224,3860.3,3859.6,0.02590942]
[1761873394810,0.0328,3860.4,3859.6,0.02590942]
[1761873395015,2.59056106,3860.2,3859.6,0.02590942]
[1761873396348,2.59056106,3860.2,3860.0,0.002]
[1761873396719,2.62340646,3860.1,3860.0,0.002]
[1761873397420,2.65620646,3860.1,3860.0,0.002]
[1761873397626,2.62340646,3860.1,3860.0,0.002]
[1761873397944,2.65620646,3860.1,3860.0,0.002]
[1761873398649,2.62340646,3860.1,3860.0,0.002]
[1761873398813,2.65620646,3860.1,3860.0,0.002]
[1761873399331,0.0328,3860.1,3860.0,0.4819]
[1761873399654,0.001,3860.9,3860.0,2.36758]
[1761873399814,0.001,3860.9,3860.8,0.4799]
[1761873400554,0.001,3860.9,3860.8,0.9659]
[1761873401044,0.001,3860.9,3860.8,0.4799]
[1761873401646,0.001,3860.9,3860.5,0.486]
[1761873402849,0.01745485,3862.6,3861.5,2.58960861]
[1761873403053,0.01745485,3862.6,3862.2,0.1883]
[1761873403214,0.01745485,3862.6,3862.3,0.0258913]
[1761873403416,0.01745485,3862.6,3862.5,0.1288]
[1761873403618,0.01745485,3862.6,3862.5,0.6087]
[1761873403819,0.01745485,3862.6,3862.5,1.0947]
[1761873404625,0.01745485,3862.6,3862.5,0.1288]
[1761873404839,0.05125485,3862.6,3862.5,0.1288]
[1761873405153,0.01745485,3862.6,3862.5,0.1288]
[1761873406022,2.64018458,3862.6,3862.5,0.1288]
[1761873406229,0.01745485,3862.6,3862.0,0.02589331]
[1761873406436,0.01745485,3862.6,3862.5,0.4799]
[1761873406632,0.01745485,3862.6,3862.5,0.9659]
[1761873406846,0.01745485,3862.6,3862.5,0.99178996]
[1761873408120,0.01745485,3862.6,3862.5,3.98629072]
[1761873408332,0.01745485,3862.6,3862.5,5.38597072]
[1761873408651,0.01745485,3862.6,3862.5,2.771084]
[1761873408832,0.01745485,3862.6,3862.5,2.79697396]
[1761873409033,0.01745485,3862.6,3862.5,5.38597072]
[1761873409330,1.39968,3866.2,3862.5,5.38597072]
[1761873409331,2.58651453,3866.3,3863.7,0.05]
[1761873409530,0.0513,3865.8,3864.1,1.805184]
[1761873409840,0.0513,3866.6,3863.8,0.6755]
[1761873409841,2.58752246,3864.8,3863.8,0.6755]
[1761873410228,0.01,3865.0,3863.8,0.1895]
[1761873410429,0.01,3865.0,3864.9,0.4528]
[1761873410763,0.01,3865.0,3864.0,1.39968]
[1761873410929,0.01,3865.0,3864.1,0.896404]
[1761873411343,2.59732546,3865.0,3864.2,0.02587857]
[1761873411545,2.58739406,3864.9,3864.1,0.4909]
[1761873411746,2.58745601,3864.8,3864.1,0.4909]
[1761873411947,0.01,3865.0,3864.1,0.4909]
[1761873412146,2.58738906,3864.9,3863.8,0.1895]
[1761873412347,2.58759492,3864.6,3863.9,0.4909]
[1761873412595,0.01,3865.0,3863.9,0.4909]
[1761873412596,2.58772546,3864.4,3863.9,0.4909]
[1761873412800,2.58738906,3864.9,3863.8,0.1895]
[1761873413076,2.58772402,3864.4,3863.8,0.1895]
[1761873413243,2.58792781,3864.1,3863.4,1.39968]
[1761873413450,2.58792781,3864.1,3862.9,0.405504]
[1761873413451,2.63892172,3864.6,3862.9,0.4909]
[1761873413647,2.58799992,3864.0,3863.1,0.51678594]
[1761873414250,0.01,3865.0,3863.9,0.4528]
[1761873414449,0.01,3865.0,3864.0,0.02587991]
[1761873414450,2.58759132,3864.6,3864.0,0.02587991]
[1761873414779,2.58746648,3864.8,3864.0,0.02587991]
[1761873414985,2.58765116,3864.6,3864.0,0.02587991]
[1761873415383,0.0513,3864.1,3862.6,0.4909]
[1761873415585,0.0513,3863.8,3862.1,0.4909]
[1761873415784,0.0513,3863.8,3861.6,0.77786809]
[1761873415785,2.58911965,3862.4,3861.6,1.26876809]
[1761873415959,2.58911965,3862.4,3861.6,0.4909]
[1761873416154,2.58911965,3862.4,3862.3,0.1288]
[1761873416358,2.64030954,3862.5,3862.3,0.1288]
[1761873416585,2.58906379,3862.4,3862.3,0.1288]
[1761873416787,2.58897043,3862.6,3862.3,0.1288]
[1761873417087,2.58791569,3864.2,3863.1,0.6423]
[1761873417286,0.0513,3864.4,3863.2,0.02588527]
[1761873417597,2.58819325,3863.7,3863.2,0.02588527]
[1761873417802,2.58819325,3863.7,3863.1,0.1895]
[1761873418175,2.58833344,3863.5,3863.1,0.1895]
[1761873418356,2.58833344,3863.5,3862.3,2.58911836]
[1761873418562,2.58860875,3863.1,3862.4,0.4909]
[1761873418763,2.58867261,3863.0,3862.4,0.4909]
[1761873418999,2.58846694,3863.3,3862.4,0.4909]
[1761873419293,2.58859554,3863.1,3862.4,0.4909]
[1761873420165,2.58763731,3864.6,3863.0,0.4528]
[1761873420358,2.58791336,3864.2,3863.1,0.21538594]
[1761873420572,0.0513,3864.5,3863.1,0.21538594]
[1761873420796,2.5877908,3864.3,3863.1,0.21538594]
[1761873420982,0.0513,3864.5,3863.1,0.70628594]
[1761873420983,2.63907381,3864.4,3863.1,0.70628594]
[1761873421185,0.0513,3864.4,3863.1,0.21538594]
[1761873421387,0.0513,3864.3,3862.7,0.4909]
[1761873421585,2.58829927,3863.6,3862.7,0.4909]
[1761873421892,2.63911281,3864.3,3862.4,0.4909]
[1761873421893,0.0513,3864.3,3862.4,0.4909]
[1761873422094,0.0513,3864.4,3862.5,0.02588996]
[1761873422095,2.58845641,3863.4,3862.5,0.02588996]
[1761873422591,2.58846645,3863.3,3862.2,0.407504]
[1761873422795,0.0513,3863.7,3862.2,0.002]
[1761873422994,0.0513,3863.6,3862.2,0.002]
[1761873423194,2.58879804,3862.8,3862.3,0.0258913]
[1761873423358,2.58851175,3863.3,3862.2,0.002]
[1761873423561,0.0513,3863.4,3862.2,0.002]
[1761873423781,2.58896984,3862.6,3862.2,0.002]
[1761873424570,2.58899835,3862.5,3862.2,0.002]
[1761873424777,2.58814093,3863.8,3862.2,0.002]
[1761873424778,2.58867057,3863.0,3862.2,0.002]
[1761873425100,2.58912428,3862.4,3862.2,0.002]
[1761873425267,2.58913082,3862.3,3862.2,0.002]
[1761873425668,2.58907692,3862.4,3862.2,0.002]
[1761873425868,2.58913082,3862.3,3862.2,0.002]
[1761873426069,2.58895833,3862.6,3862.2,0.002]
[1761873426494,0.0512,3862.3,3862.2,0.002]
[1761873426695,2.64033082,3862.3,3862.2,0.002]
[1761873427198,2.64033082,3862.3,3862.2,0.1308]
[1761873427573,2.58913082,3862.3,3862.2,0.1308]
[1761873427773,0.0512,3863.2,3862.2,0.1308]
[1761873427997,2.64033082,3862.3,3862.2,0.002]
[1761873428402,2.69153082,3862.3,3862.2,0.1308]
[1761873428973,0.1288,3863.1,3862.2,1.264]
[1761873429198,2.58897959,3862.6,3862.2,0.002]
[1761873429505,0.0512,3863.4,3862.2,0.002]
[1761873430099,2.58898876,3862.6,3862.2,0.51879197]
[1761873430601,2.58900654,3862.5,3862.2,0.51879197]
[1761873430806,2.58900654,3862.5,3862.2,0.002]
[1761873430975,2.5880978,3863.9,3862.2,0.002]
[1761873430976,2.58906755,3862.4,3862.2,0.002]
[1761873431177,2.588989,3862.6,3862.2,0.002]
[1761873431374,2.58898415,3862.6,3862.2,0.002]
[1761873432211,2.58898415,3862.6,3862.2,0.4929]
[1761873432634,2.5885865,3863.2,3862.2,0.4929]
[1761873432780,2.58912377,3862.4,3862.2,0.4929]
[1761873433180,2.58912377,3862.4,3862.2,0.002]
[1761873433411,2.58908432,3862.4,3862.2,0.002]
[1761873433629,0.0512,3863.4,3862.3,0.4528]
[1761873433630,2.58900542,3862.5,3862.3,0.4528]
[1761873434216,2.5889683,3862.6,3862.3,0.9437]
[1761873434382,2.5889683,3862.6,3862.4,0.4528]
[1761873434577,2.58899676,3862.5,3862.4,0.4528]
[1761873435287,2.58893514,3862.6,3862.4,0.4528]
[1761873435984,2.58899676,3862.5,3862.2,0.4947]
[1761873436198,2.58899676,3862.5,3862.2,0.002]
[1761873436509,2.58899676,3862.5,3862.4,0.4647]
[1761873437948,2.58897671,3862.6,3862.4,0.4647]
[1761873438242,2.58899676,3862.5,3862.4,0.4647]
[1761873438422,2.58913082,3862.3,3862.2,0.002]
[1761873438625,2.64033082,3862.3,3862.2,0.002]
[1761873439128,2.64033082,3862.3,3862.2,0.1308]
[1761873443701,2.69153082,3862.3,3862.2,0.1308]
[1761873443907,2.58919786,3862.2,3862.1,0.002]
[1761873444106,2.69159786,3862.2,3862.1,0.002]
[1761873444436,2.69159786,3862.2,3862.1,0.1308]
[1761873445459,2.58873765,3862.9,3862.1,0.1308]
[1761873445460,0.405504,3863.4,3862.1,0.002]
[1761873445752,2.64039786,3862.2,3862.1,0.002]
[1761873447811,2.58919786,3862.2,3862.1,0.002]
[1761873448212,2.64039786,3862.2,3862.1,0.002]
[1761873449078,2.640599,3861.9,3861.8,1e-08]
[1761873449515,2.691799,3861.9,3861.8,1e-08]
[1761873450254,2.640599,3861.9,3861.8,1e-08]
[1761873451150,2.691799,3861.9,3861.8,1e-08]
[1761873453039,2.640599,3861.9,3861.8,1e-08]
[1761873453380,2.589399,3861.9,3861.8,1e-08]
[1761873453889,2.640599,3861.9,3861.8,1e-08]
[1761873454223,2.589399,3861.9,3861.8,1e-08]
[1761873455042,2.640599,3861.9,3861.8,1e-08]
[1761873455448,2.589399,3861.9,3861.8,1e-08]
[1761873455674,2.58937639,3862.0,3861.8,0.12880001]
[1761873455827,0.001,3863.0,3861.8,1e-08]
[1761873455828,2.589399,3861.9,3861.8,1e-08]
[1761873456374,2.589399,3861.9,3861.8,0.12880001]
[1761873459873,2.589399,3861.9,3861.8,1e-08]
[1761873460272,2.640599,3861.9,3861.8,1e-08]
[1761873461059,2.691799,3861.9,3861.8,1e-08]
[1761873464884,2.640599,3861.9,3861.8,1e-08]
[1761873465064,2.691799,3861.9,3861.8,1e-08]
[1761873465541,2.640599,3861.9,3861.8,1e-08]
[1761873466160,2.691799,3861.9,3861.8,1e-08]
[1761873467774,2.64113551,3861.1,3861.0,1e-08]
[1761873469743,2.64113551,3861.1,3861.0,0.12880001]
[1761873469938,2.59040513,3860.4,3860.3,0.1986]
[1761873470354,2.59060646,3860.1,3860.0,0.002]
[1761873470659,2.59060646,3860.1,3860.0,0.4602]
[1761873470857,2.59060646,3860.1,3860.0,1.0572]
[1761873476161,2.59060646,3860.1,3860.0,0.599]
[1761873476996,2.64180646,3860.1,3860.0,0.1308]
[1761873477373,7.48325139,3860.1,3860.0,0.1308]
[1761873478200,2.59087493,3859.7,3859.6,0.002]
[1761873478377,7.48351986,3859.7,3859.6,0.1308]
[1761873478782,2.64207493,3859.7,3859.6,0.1308]
[1761873480209,2.69327493,3859.7,3859.6,0.1308]
[1761873480714,2.69327493,3859.7,3859.6,0.002]
[1761873480715,2.59087493,3859.7,3859.6,0.002]
[1761873480876,2.64207493,3859.7,3859.6,0.002]
[1761873482109,2.69327493,3859.7,3859.6,0.002]
[1761873482414,0.405504,3860.5,3859.6,0.9284]
[1761873482627,2.59000259,3861.0,3859.8,0.4682]
[1761873482779,2.59000259,3861.0,3859.9,0.0259074]
[1761873482974,2.59075754,3859.9,3859.6,0.002]
[1761873483226,2.59020384,3860.7,3859.6,0.002]
[1761873483419,5.97957864,3860.8,3859.6,0.002]
[1761873483420,6.03077864,3860.8,3859.6,0.002]
[1761873483719,2.59087493,3859.7,3859.6,0.002]
[1761873484215,2.59087493,3859.7,3859.6,0.9284]
[1761873485502,6.03077864,3860.8,3859.6,0.9284]
[1761873485503,2.59064724,3860.1,3859.6,0.9284]
[1761873485818,2.59060646,3860.1,3860.0,0.4682]
[1761873486116,1.39968,3861.0,3860.0,0.9264]
[1761873486339,2.59060646,3860.1,3860.0,0.9264]
[1761873487043,2.59087493,3859.7,3859.6,0.002]
[1761873487506,2.59087493,3859.7,3859.6,0.9284]
[1761873487710,2.59087493,3859.7,3859.6,0.002]
[1761873488137,2.64207493,3859.7,3859.6,0.002]
[1761873488944,2.69327493,3859.7,3859.6,0.002]
[1761873489349,2.64207493,3859.7,3859.6,0.002]
[1761873489910,2.69327493,3859.7,3859.6,0.002]
[1761873490321,2.64207493,3859.7,3859.6,0.002]
[1761873490526,2.59087493,3859.7,3859.6,0.002]
[1761873491347,2.64207493,3859.7,3859.6,0.002]
[1761873491931,2.64207493,3859.7,3857.4,0.1987]
[1761873491932,0.0492,3858.2,3857.4,0.1987]
[1761873492246,2.59235255,3857.5,3857.4,0.1987]
[1761873492715,2.59241976,3857.4,3857.1,0.1987]
[1761873492915,2.61833941,3857.4,3856.9,0.002]
[1761873493150,2.61833941,3857.4,3857.2,0.1987]
[1761873493341,2.61833941,3857.4,3857.3,0.9284]
[1761873494332,2.61833941,3857.4,3857.3,0.002]
[1761873495352,3.83349047,3857.4,3857.3,0.002]
[1761873495545,3.12224341,3857.4,3857.3,0.002]
[1761873497123,2.66753941,3857.4,3857.3,0.002]
[1761873497858,3.12224341,3857.4,3857.3,0.002]
[1761873498149,2.71673941,3857.4,3857.3,0.002]
[1761873498356,3.12224341,3857.4,3857.3,0.002]
[1761873498554,2.59295752,3856.6,3856.5,0.002]
[1761873498742,2.64215752,3856.6,3856.5,0.002]
[1761873499051,2.66807717,3856.6,3856.5,0.002]
[1761873499962,2.71727717,3856.6,3856.5,0.002]
[1761873500325,2.66807717,3856.6,3856.5,0.002]
[1761873500524,2.71727717,3856.6,3856.5,0.002]
[1761873500730,10.50203981,3856.6,3856.5,0.002]
[1761873501057,10.90826408,3856.6,3856.5,0.002]
[1761873501257,10.47612016,3856.6,3856.5,0.002]
[1761873502376,2.59295752,3856.6,3856.5,0.002]
[1761873502834,2.61887717,3856.6,3856.5,0.002]
[1761873503256,2.61887717,3856.6,3856.5,1.0554]
[1761873503429,2.59295752,3856.6,3856.5,1.0554]
[1761873503852,2.59295752,3856.6,3856.5,0.604]
[1761873504360,2.59295752,3856.6,3856.5,1.0554]
[1761873504740,0.02591965,3856.7,3856.5,1.0554]
[1761873504953,0.02591965,3857.1,3856.6,0.9238]
[1761873505149,0.02591965,3857.1,3856.8,0.4724]
[1761873505344,2.61856163,3857.1,3857.0,0.602]
[1761873505740,2.59264198,3857.1,3857.0,1.0534]
[1761873505963,0.1296,3858.0,3857.0,1.0534]
[1761873506170,2.59248697,3857.3,3857.2,0.4724]
[1761873506677,2.59248697,3857.3,3857.2,1.0534]
[1761873507675,2.59243781,3857.4,3857.2,1.0534]
[1761873507843,2.59236951,3857.5,3857.3,0.9238]
[1761873508181,2.59235255,3857.5,3857.4,0.4724]
[1761873508472,2.59235255,3857.5,3857.4,1.0534]
[1761873509741,0.02591965,3857.6,3857.4,1.0534]
[1761873509973,2.59226986,3857.7,3857.5,0.9238]
[1761873510145,3.991281,3858.7,3857.6,0.49832285]
[1761873510146,2.5919494,3858.1,3857.6,0.49832285]
[1761873510478,0.1288,3858.7,3857.6,0.49832285]
[1761873510479,2.59209573,3857.9,3857.6,0.581]
[1761873510673,0.02591965,3858.7,3857.6,0.4514]
[1761873510977,2.59208377,3857.9,3857.8,0.602]
[1761873511275,2.59208377,3857.9,3857.8,0.4724]
[1761873511485,2.59208377,3857.9,3857.8,1.0534]
[1761873513980,2.59189364,3858.2,3857.8,1.0534]
[1761873514146,2.59201658,3858.0,3857.9,0.4514]
[1761873514667,2.59201658,3858.0,3857.9,1.0534]
[1761873521551,2.59121061,3859.2,3857.9,1.0534]
[1761873521761,0.0492,3859.5,3858.1,0.4724]
[1761873521762,2.59174139,3858.5,3858.1,0.4724]
[1761873521959,2.59162722,3858.6,3858.2,0.02591882]
[1761873522166,2.59146877,3858.9,3858.4,0.7928]
[1761873522347,2.59146877,3858.9,3858.8,0.4724]
[1761873522660,2.59161353,3858.6,3858.5,0.4773168]
[1761873522859,2.59161353,3858.6,3858.5,0.4514]
[1761873523064,0.0492,3858.6,3858.5,0.1288]
[1761873523264,2.59197105,3858.1,3857.5,0.4514]
[1761873523462,0.07511965,3858.6,3857.5,0.4514]
[1761873523463,2.59216415,3857.8,3857.5,0.4514]
[1761873523948,2.59222283,3857.7,3857.5,0.4514]
[1761873524366,2.59222283,3857.7,3857.6,0.4724]
[1761873524751,2.59222283,3857.7,3857.6,0.9238]
[1761873525389,2.59210349,3857.9,3857.6,0.9238]
[1761873525593,2.59210349,3857.9,3857.2,0.4724]
[1761873525594,2.59210349,3857.9,3857.8,0.4724]
[1761873525968,2.59210349,3857.9,3857.8,0.9238]
[1761873530756,0.0492,3857.9,3857.1,0.1916]
[1761873530958,0.02591965,3857.8,3857.2,0.4556]
[1761873531282,2.59249985,3857.3,3857.2,0.4556]
[1761873531808,2.59249985,3857.3,3857.2,0.9303]
[1761873533165,2.59249985,3857.3,3857.2,1.0599]
[1761873533576,2.64169985,3857.3,3857.2,0.1296]
[1761873533782,2.59249985,3857.3,3857.2,0.1296]
[1761873534002,0.001,3858.0,3857.2,1.2455]
[1761873534204,0.001,3858.0,3857.9,0.4747]
[1761873534415,2.59301658,3858.0,3857.9,0.4747]
[1761873534704,2.59301658,3858.0,3857.9,0.6043]
[1761873536168,0.001,3858.0,3857.9,1.0599]
[1761873536616,2.59301658,3858.0,3857.9,1.0599]
[1761873537035,0.001,3858.0,3857.9,1.0599]
[1761873537189,2.59301658,3858.0,3857.9,1.0599]
[1761873538014,2.64221658,3858.0,3857.9,0.1296]
[1761873538393,2.59301658,3858.0,3857.9,0.1296]
[1761873538909,2.64221658,3858.0,3857.9,0.1296]
[1761873539110,2.59301658,3858.0,3857.9,1.0599]
[1761873539410,2.59301658,3858.0,3857.9,0.6043]
[1761873539624,2.59301658,3858.0,3857.9,0.1296]
[1761873540809,2.64221658,3858.0,3857.9,0.1296]
[1761873541213,2.59301658,3858.0,3857.9,0.1296]
[1761873541507,2.59301658,3858.0,3857.9,0.6043]
[1761873541994,2.59301658,3858.0,3857.9,0.1296]
[1761873542313,2.64221658,3858.0,3857.9,0.1296]
[1761873543008,2.61893623,3858.0,3857.9,1.0599]
[1761873543796,2.59301658,3858.0,3857.9,1.0599]
[1761873544609,2.59301658,3858.0,3857.9,0.6043]
[1761873544911,2.59301658,3858.0,3857.9,1.0599]
[1761873545294,2.59301658,3858.0,3857.9,0.6043]
[1761873545491,2.64221658,3858.0,3857.9,0.1296]
[1761873548024,2.59301658,3858.0,3857.9,0.1296]
[1761873548195,2.59301658,3858.0,3857.9,0.6043]
[1761873548395,2.59301658,3858.0,3857.9,0.1296]
[1761873548595,2.64221658,3858.0,3857.9,0.1296]
[1761873549414,2.69141658,3858.0,3857.9,0.1296]
[1761873550701,2.64221658,3858.0,3857.9,0.1296]
[1761873550898,2.59268861,3857.0,3856.9,0.002]
[1761873551112,0.001,3858.0,3856.9,0.4576]
[1761873551309,2.59260618,3857.2,3857.1,0.4747]
[1761873551831,2.59260618,3857.2,3857.1,1.2455]
[1761873552492,2.59260618,3857.2,3857.1,0.7899]
[1761873552694,2.59260618,3857.2,3857.1,1.2455]
[1761873553495,2.59260618,3857.2,3857.1,0.7899]
[1761873553725,2.59260618,3857.2,3857.1,0.6043]
[1761873553906,2.64180618,3857.2,3857.1,0.1296]
[1761873555735,0.001,3858.0,3857.1,1.1159]
[1761873555940,2.59248697,3857.3,3857.2,0.4747]
[1761873556106,2.59268861,3857.0,3856.9,0.002]
[1761873556540,2.59268861,3857.0,3856.9,1.0758]
[1761873557007,2.59268861,3857.0,3856.9,0.1316]
[1761873557703,2.59268861,3857.0,3856.9,0.6173]
[1761873557902,0.001,3858.0,3856.9,1.0758]
[1761873558122,2.59262139,3857.1,3857.0,0.9442]
[1761873558515,2.59262139,3857.1,3857.0,1.0738]
[1761873558722,2.59304122,3858.0,3857.0,1.0738]
[1761873559039,2.59248697,3857.3,3857.2,0.4857]
[1761873559530,2.59248697,3857.3,3857.2,0.6153]